Workbook

Sheet паспорт
A1: ПАТ "УКРТРАНСГАЗ" | G1: ПАСПОРТ ФІЗИКО-ХІМІЧНИХ ПОКАЗНИКІВ ПРИРОДНОГО ГАЗУ № 524
A2: Філія "УМГ " Прикарпаттрансгаз" | G2: переданого Закарпатським ЛВУМГ та прийнятого ПАТ "Закарпатгаз" та ТзОВ "СТЕЙТ ОІЛ"
A3: ГКС Ужгород п/м Закарпатського ЛВУМГ | H3: маршрут №524
A4: Вимірювальна хіміко-аналітична лабораторія
A5: Свідоцтво № РВ-0033-13 чинне до 26.06.2018 р. | N5: по газопроводу "ДУД-І" | V5: за період з | X5: 2017-02-01 | Z5: по | AA5: 2017-02-28
A7: Число місяця | B7: Компонентний склад, % мол. | N7: Фізико-хімічні показники газу обчислені на основі компонентного складу, 101,325 кПа | X7: Температура точки роси вологи (Р = 3.92 МПа), ºС | Y7: Температура точки роси вуглеводнів, ºС | Z7: Вміст сірководню, г/м3 | AA7: Вміст меркаптанової сірки, г/м3 | AB7: Вміст механічних домішок, г/м3
N8: Густина абсолютна, кг/м3,при 20 ºС, | O8: Температура вимірювання/згоряння при 20/25°С
B9: метан, С1 | C9: етан, С2 | D9: пропан, С3 | E9: ізо-бутан, і-С4 | F9: н-бутан, н-С4 | G9: нео-пентан, нео-С5 | H9: ізо-пентан, і-С5 | I9: н-пентан, н-С5 | J9: гексани та вищі, С6+ | K9: кисень, О2 | L9: азот, N2 | M9: діоксид вуглецю, CО2 | O9: Теплота згоряння нижча | R9: Теплота згоряння вища | U9: Число Воббе вище
O10: ккал/м3 | P10: МДж/м3 | Q10: кВт⋅год/м3 | R10: ккал/м3 | S10: МДж/м3 | T10: кВт⋅год/м3 | U10: ккал/м3 | V10: МДж/м3 | W10: кВт⋅год/м3
A11: 1 | B11: 96.2134 | C11: 2.0701 | D11: 0.6423 | E11: 0.1017 | F11: 0.099 | G11: 0.0056 | H11: 0.0184 | I11: 0.0123 | J11: 0.0114 | L11: 0.6736 | M11: 0.1522 | N11: 0.6977 | O11: =P11*238.8459 -> 8178.083616 | P11: 34.24 | Q11: 9.511111111 | R11: =S11*238.8459 -> 9068.978823 | S11: 37.97 | T11: =S11/3.6 -> 10.54722222 | U11: =V11*238.8459 -> 11916.02195 | V11: 49.89 | W11: 13.85833333 | X11: -16 | AC11: =SUM(B11:M11)+$K$39+$N$39 -> 100 | AD11: =IF(AC11=100,"ОК"," ") -> ОК
A12: 2 | B12: 96.298 | C12: 2.0101 | D12: 0.62 | E12: 0.0985 | F12: 0.0963 | G12: 0.0055 | H12: 0.018 | I12: 0.0121 | J12: 0.0113 | L12: 0.682 | M12: 0.1482 | N12: 0.697 | O12: =P12*238.8459 -> 8168.52978 | P12: 34.2 | Q12: 9.5 | R12: =S12*238.8459 -> 9059.424987 | S12: 37.93 | T12: =S12/3.6 -> 10.53611111 | U12: =V12*238.8459 -> 11908.85657 | V12: 49.86 | W12: 13.85 | AC12: =SUM(B12:M12)+$K$39+$N$39 -> 100 | AD12: ОК
A13: 3 | B13: 96.169 | C13: 2.0725 | D13: 0.6325 | E13: 0.0997 | F13: 0.0987 | G13: 0.0058 | H13: 0.0186 | I13: 0.0124 | J13: 0.0127 | L13: 0.699 | M13: 0.1791 | N13: 0.6981 | O13: 8173.306698 | P13: 34.22 | Q13: 9.505555556 | R13: 9061.813446 | S13: 37.94 | T13: 10.53888889 | U13: 11904.07966 | V13: 49.84 | W13: 13.84444444 | AC13: =SUM(B13:M13)+$K$39+$N$39 -> 100 | AD13: ОК
A14: 4 | B14: 96.2551 | C14: 2.0334 | D14: 0.6226 | E14: 0.0989 | F14: 0.0966 | G14: 0.0054 | H14: 0.018 | I14: 0.0114 | J14: 0.013 | L14: 0.6851 | M14: 0.1605 | N14: 0.6974 | O14: =P14*238.8459 -> 8170.918239 | P14: 34.21 | Q14: 9.502777778 | R14: 9061.813446 | S14: 37.94 | T14: 10.53888889 | U14: 11908.85657 | V14: 49.86 | W14: 13.85 | AC14: =SUM(B14:M14)+$K$39+$N$39 -> 100 | AD14: ОК
A15: 5 | B15: 96.3449 | C15: 1.9935 | D15: 0.6127 | E15: 0.0982 | F15: 0.0946 | G15: 0.005 | H15: 0.0173 | I15: 0.0109 | J15: 0.012 | L15: 0.6751 | M15: 0.1358 | N15: 0.6966 | O15: 8168.52978 | P15: 34.2 | Q15: 9.5 | R15: 9059.424987 | S15: 37.93 | T15: 10.53611111 | U15: 11911.24503 | V15: 49.87 | W15: 13.85277778 | AC15: =SUM(B15:M15)+$K$39+$N$39 -> 100 | AD15: ОК
A16: 6 | B16: 96.2726 | C16: 2.0376 | D16: 0.6271 | E16: 0.1003 | F16: 0.0969 | G16: 0.0057 | H16: 0.018 | I16: 0.0118 | J16: 0.0118 | L16: 0.6763 | M16: 0.1419 | N16: 0.6972 | O16: 8173.306698 | P16: 34.22 | Q16: 9.505555556 | R16: 9064.201905 | S16: 37.95 | T16: 10.54166667 | U16: 11913.63349 | V16: 49.88 | W16: 13.85555556 | AC16: =SUM(B16:M16)+$K$39+$N$39-K16 -> 100 | AD16: ОК
A17: 7 | B17: 96.2269 | C17: 2.0689 | D17: 0.643 | E17: 0.1025 | F17: 0.0994 | G17: 0.0058 | H17: 0.0184 | I17: 0.0119 | J17: 0.0121 | L17: 0.6679 | M17: 0.1432 | N17: 0.6976 | O17: 8178.083616 | P17: 34.24 | Q17: 9.511111111 | R17: 9071.367282 | S17: 37.98 | T17: 10.55 | U17: 11918.41041 | V17: 49.9 | W17: 13.86111111 | AC17: =SUM(B17:M17)+$K$39+$N$39 -> 100 | AD17: ОК
A18: 8 | B18: 96.3122 | C18: 2.0071 | D18: 0.6234 | E18: 0.0998 | F18: 0.0965 | G18: 0.0054 | H18: 0.018 | I18: 0.0113 | J18: 0.0115 | L18: 0.6803 | M18: 0.1345 | N18: 0.6969 | O18: =P18*238.8459 -> 8170.918239 | P18: 34.21 | Q18: 9.502777778 | R18: =S18*238.8459 -> 9061.813446 | S18: 37.94 | T18: 10.53888889 | U18: 11913.63349 | V18: 49.88 | W18: 13.85555556 | X18: -16.5 | Y18: ˂-16,5 | Z18: 0.0002 | AA18: 0.0003 | AC18: 100 | AD18: ОК
A19: 9 | B19: 96.1724 | C19: 2.0955 | D19: 0.6539 | E19: 0.1045 | F19: 0.1018 | G19: 0.0058 | H19: 0.019 | I19: 0.0121 | J19: 0.012 | L19: 0.6781 | M19: 0.1449 | N19: 0.6981 | O19: =P19*238.8459 -> 8182.860534 | P19: 34.26 | Q19: 9.516666667 | R19: =S19*238.8459 -> 9073.755741 | S19: 37.99 | T19: 10.55277778 | U19: 11918.41041 | V19: 49.9 | W19: 13.86111111 | AC19: 100 | AD19: ОК
A20: 10 | B20: 96.2555 | C20: 2.0501 | D20: 0.642 | E20: 0.1026 | F20: 0.0995 | G20: 0.0056 | H20: 0.0184 | I20: 0.0122 | J20: 0.011 | L20: 0.6679 | M20: 0.1352 | N20: 0.6974 | O20: 8178.083616 | P20: 34.24 | Q20: 9.511111111 | R20: 9068.978823 | S20: 37.97 | T20: 10.54722222 | U20: 11918.41041 | V20: 49.9 | W20: 13.86111111 | AC20: 100 | AD20: ОК
A21: 11 | B21: 96.1995 | C21: 2.0953 | D21: 0.6518 | E21: 0.1034 | F21: 0.1001 | G21: 0.0059 | H21: 0.0183 | I21: 0.0125 | J21: 0.0104 | L21: 0.6606 | M21: 0.1422 | N21: 0.6978 | O21: 8182.860534 | P21: 34.26 | Q21: 9.516666667 | R21: 9073.755741 | S21: 37.99 | T21: 10.55277778 | U21: 11920.79887 | V21: 49.91 | W21: 13.86388889 | AC21: 100 | AD21: ОК
A22: 12 | B22: 96.2349 | C22: 2.0727 | D22: 0.6413 | E22: 0.1021 | F22: 0.0986 | G22: 0.0057 | H22: 0.0181 | I22: 0.0124 | J22: 0.0098 | L22: 0.6645 | M22: 0.1399 | N22: 0.6975 | O22: 8178.083616 | P22: 34.24 | Q22: 9.511111111 | R22: 9068.978823 | S22: 37.97 | T22: 10.54722222 | U22: 11918.41041 | V22: 49.9 | W22: 13.86111111 | AC22: 100 | AD22: ОК
A23: 13 | B23: 96.2502 | C23: 2.0554 | D23: 0.6323 | E23: 0.1009 | F23: 0.0977 | G23: 0.006 | H23: 0.0181 | I23: 0.0122 | J23: 0.0102 | L23: 0.6748 | M23: 0.1422 | N23: 0.6973 | O23: 8175.695157 | P23: 34.23 | Q23: 9.508333333 | R23: 9066.590364 | S23: 37.96 | T23: 10.54444444 | U23: 11916.02195 | V23: 49.89 | W23: 13.85833333 | AC23: =SUM(B23:M23)+$K$39+$N$39-K23 -> 100 | AD23: ОК
A24: 14 | B24: 96.2825 | C24: 2.0348 | D24: 0.6253 | E24: 0.0998 | F24: 0.0964 | G24: 0.0058 | H24: 0.0179 | I24: 0.0118 | J24: 0.0105 | L24: 0.6774 | M24: 0.1378 | N24: 0.697 | O24: 8173.306698 | P24: 34.22 | Q24: 9.505555556 | R24: 9064.201905 | S24: 37.95 | T24: 10.54166667 | U24: 11913.63349 | V24: 49.88 | W24: 13.85555556 | AC24: =SUM(B24:M24)+$K$39+$N$39 -> 100 | AD24: ОК
A25: 15 | B25: 96.2983 | C25: 2.0284 | D25: 0.6209 | E25: 0.099 | F25: 0.095 | G25: 0.0054 | H25: 0.0176 | I25: 0.0117 | J25: 0.0142 | L25: 0.6736 | M25: 0.1359 | N25: 0.697 | O25: =P25*238.8459 -> 8173.306698 | P25: 34.22 | Q25: 9.505555556 | R25: =S25*238.8459 -> 9064.201905 | S25: 37.95 | T25: 10.54166667 | U25: 11916.02195 | V25: 49.89 | W25: 13.85833333 | X25: -16.8 | AB25: 0 | AC25: 100 | AD25: ОК
A26: 16 | B26: 96.307 | C26: 2.0237 | D26: 0.6224 | E26: 0.0991 | F26: 0.0952 | G26: 0.0056 | H26: 0.0176 | I26: 0.0117 | J26: 0.0169 | L26: 0.6666 | M26: 0.1342 | N26: 0.697 | O26: =P26*238.8459 -> 8173.306698 | P26: 34.22 | Q26: 9.505555556 | R26: =S26*238.8459 -> 9064.201905 | S26: 37.95 | T26: 10.54166667 | U26: 11916.02195 | V26: 49.89 | W26: 13.85833333 | AC26: 100 | AD26: ОК
A27: 17 | B27: 96.3239 | C27: 2.0169 | D27: 0.6215 | E27: 0.0981 | F27: 0.0942 | G27: 0.0051 | H27: 0.0176 | I27: 0.0114 | J27: 0.0123 | L27: 0.6654 | M27: 0.1336 | N27: 0.6967 | O27: 8170.918239 | P27: 34.21 | Q27: 9.502777778 | R27: 9061.813446 | S27: 37.94 | T27: 10.53888889 | U27: 11916.02195 | V27: 49.89 | W27: 13.85833333 | AC27: 100 | AD27: ОК
A28: 18 | B28: 96.35 | C28: 1.9982 | D28: 0.6163 | E28: 0.0974 | F28: 0.0937 | G28: 0.0054 | H28: 0.0174 | I28: 0.0114 | J28: 0.0117 | L28: 0.6675 | M28: 0.131 | N28: 0.6965 | O28: 8170.918239 | P28: 34.21 | Q28: 9.502777778 | R28: 9059.424987 | S28: 37.93 | T28: 10.53611111 | U28: 11913.63349 | V28: 49.88 | W28: 13.85555556 | AC28: 100 | AD28: ОК
A29: 19 | B29: 96.3275 | C29: 2.0135 | D29: 0.6196 | E29: 0.0979 | F29: 0.0942 | G29: 0.005 | H29: 0.0175 | I29: 0.0115 | J29: 0.0115 | L29: 0.6691 | M29: 0.1327 | N29: 0.6967 | O29: 8170.918239 | P29: 34.21 | Q29: 9.502777778 | R29: 9061.813446 | S29: 37.94 | T29: 10.53888889 | U29: 11913.63349 | V29: 49.88 | W29: 13.85555556 | AC29: 100 | AD29: ОК
A30: 20 | B30: 96.3075 | C30: 2.0278 | D30: 0.6226 | E30: 0.0981 | F30: 0.0944 | G30: 0.0054 | H30: 0.0175 | I30: 0.0116 | J30: 0.0117 | L30: 0.6697 | M30: 0.1337 | N30: 0.6968 | O30: 8173.306698 | P30: 34.22 | Q30: 9.505555556 | R30: 9064.201905 | S30: 37.95 | T30: 10.54166667 | U30: 11916.02195 | V30: 49.89 | W30: 13.85833333 | AC30: =SUM(B30:M30)+$K$39+$N$39-K30 -> 100 | AD30: ОК
A31: 21 | B31: 96.3255 | C31: 2.017 | D31: 0.6183 | E31: 0.098 | F31: 0.0948 | G31: 0.0056 | H31: 0.0176 | I31: 0.0117 | J31: 0.0114 | L31: 0.6706 | M31: 0.1295 | N31: 0.6967 | O31: 8170.918239 | P31: 34.21 | Q31: 9.502777778 | R31: 9061.813446 | S31: 37.94 | T31: 10.53888889 | U31: 11916.02195 | V31: 49.89 | W31: 13.85833333 | AC31: =SUM(B31:M31)+$K$39+$N$39 -> 100 | AD31: ОК
A32: 22 | B32: 96.3715 | C32: 1.9925 | D32: 0.6045 | E32: 0.0945 | F32: 0.0911 | G32: 0.0055 | H32: 0.0167 | I32: 0.0111 | J32: 0.0106 | K32: 0.0062 | L32: 0.6759 | M32: 0.1261 | N32: 0.6962 | O32: =P32*238.8459 -> 8166.141321 | P32: 34.19 | Q32: 9.497222222 | R32: =S32*238.8459 -> 9057.036528 | S32: 37.92 | T32: 10.53333333 | U32: 11911.24503 | V32: 49.87 | W32: 13.85277778 | X32: -16.2 | Y32: ˂-16,2 | AC32: 100.0062
A33: 23 | B33: 96.3875 | C33: 1.9929 | D33: 0.5978 | E33: 0.0911 | F33: 0.0869 | G33: 0.0051 | H33: 0.0155 | I33: 0.0102 | J33: 0.0095 | L33: 0.6769 | M33: 0.1266 | N33: 0.6959 | O33: =P33*238.8459 -> 8163.752862 | P33: 34.18 | Q33: 9.494444444 | R33: =S33*238.8459 -> 9052.25961 | S33: 37.9 | T33: 10.52777778 | U33: 11911.24503 | V33: 49.87 | W33: 13.85277778 | AC33: 100 | AD33: ОК
A34: 24 | B34: 96.3621 | C34: 2.0105 | D34: 0.6039 | E34: 0.0916 | F34: 0.0874 | G34: 0.0045 | H34: 0.0155 | I34: 0.0103 | J34: 0.0097 | L34: 0.6762 | M34: 0.1283 | N34: 0.6961 | O34: 8163.752862 | P34: 34.18 | Q34: 9.494444444 | R34: 9054.648069 | S34: 37.91 | T34: 10.53055556 | U34: 11911.24503 | V34: 49.87 | W34: 13.85277778 | AC34: 100 | AD34: ОК
A35: 25 | B35: 96.3404 | C35: 2.012 | D35: 0.603 | E35: 0.0928 | F35: 0.0878 | G35: 0.005 | H35: 0.0161 | I35: 0.0103 | J35: 0.0103 | L35: 0.679 | M35: 0.1433 | N35: 0.6964 | O35: 8163.752862 | P35: 34.18 | Q35: 9.494444444 | R35: 9054.648069 | S35: 37.91 | T35: 10.53055556 | U35: 11908.85657 | V35: 49.86 | W35: 13.85 | AC35: 100 | AD35: ОК
A36: 26 | B36: 96.2449 | C36: 2.0616 | D36: 0.6227 | E36: 0.0982 | F36: 0.0934 | G36: 0.005 | H36: 0.0178 | I36: 0.0115 | J36: 0.0118 | L36: 0.6771 | M36: 0.156 | N36: 0.6973 | O36: 8170.918239 | P36: 34.21 | Q36: 9.502777778 | R36: 9061.813446 | S36: 37.94 | T36: 10.53888889 | U36: 11911.24503 | V36: 49.87 | W36: 13.85277778 | AC36: 100 | AD36: ОК
A37: 27 | B37: 96.1651 | C37: 2.1169 | D37: 0.6439 | E37: 0.1019 | F37: 0.0979 | G37: 0.0054 | H37: 0.0188 | I37: 0.0122 | J37: 0.0128 | L37: 0.6716 | M37: 0.1535 | N37: 0.6981 | O37: 8180.472075 | P37: 34.25 | Q37: 9.513888889 | R37: 9071.367282 | S37: 37.98 | T37: 10.55 | U37: 11916.02195 | V37: 49.89 | W37: 13.85833333 | AC37: =SUM(B37:M37)+$K$39+$N$39-K37 -> 100 | AD37: ОК
A38: 28 | B38: 96.199 | C38: 2.0941 | D38: 0.6364 | E38: 0.1007 | F38: 0.0966 | G38: 0.0051 | H38: 0.0184 | I38: 0.0118 | J38: 0.0135 | L38: 0.672 | M38: 0.1524 | N38: 0.6978 | O38: 8178.083616 | P38: 34.24 | Q38: 9.511111111 | R38: 9068.978823 | S38: 37.97 | T38: 10.54722222 | U38: 11916.02195 | V38: 49.89 | W38: 13.85833333 | AC38: =SUM(B38:M38)+$K$39+$N$39 -> 100 | AD38: ОК
A39: Рівень одоризації відповідає чинним нормативним документам | O39: 8173.053929 | P39: 34.21894171 | Q39: 9.505261585 | R39: 9063.779754 | S39: 37.94823254 | T39: 10.54117571
H40: Середньозважене значення теплоти згоряння:
B43: Начальник Закарпатського ЛВУМГ | O43: Лукіта В.Ф. | U43: 01.03.17.
D44: Підрозділу підприємства, якому підпорядкована лабораторія | O44: прізвище | R44: підпис | U44: дата
B45: Начальник ВХАЛ | O45: Завадяк О.В. | U45: 01.03.17.
E46: Лабораторія, де здійснювались аналізи газу | O46: прізвище | R46: підпис | U46: дата
B47: Начальник метрологічної служби | O47: Водянчук М.В. | U47: 01.03.17.
E48: Метрологічна служба, яка вимірює обсяги газу | O48: прізвище | R48: підпис | U48: дата

Sheet додаток
A2: Додаток до Паспорту фізико-хімічних показників природного газу № 524
A4: Область | B4: ГРС, прямий споживач | C4: Cередньозважене значення вищої теплоти згоряння
C5: МДж/м³ | D5: ккал/м³ | E5: кВт*год./м³
A6: Закарпатська область | B6: ГРС Мукачево | C6: 37.95 | D6: 9064 | E6: 10.54
B7: ГРС Зняцево | C7: 37.95 | D7: 9064 | E7: 10.54
B8: ГРС Залужжя | C8: 37.95 | D8: 9064 | E8: 10.54
B9: ГРС Бобовище | C9: 37.95 | D9: 9064 | E9: 10.54
B10: ГРС Карпати | C10: 37.95 | D10: 9064 | E10: 10.54
B11: ГРС Берегово | C11: 37.95 | D11: 9064 | E11: 10.54
B12: ГРС Береги | C12: 37.95 | D12: 9064 | E12: 10.54
B13: ГРС Свалява | C13: 37.95 | D13: 9064 | E13: 10.54
B14: ГРС Керецьки | C14: 37.95 | D14: 9064 | E14: 10.54
B15: ГРС Росош | C15: 37.95 | D15: 9064 | E15: 10.54
B16: ГРС Міжгір\я | C16: 37.95 | D16: 9064 | E16: 10.54
B17: ГРС Майдан | C17: 37.95 | D17: 9064 | E17: 10.54
B18: ГРС Репинне | C18: 37.95 | D18: 9064 | E18: 10.54
A19: Середньозважене значення вищої теплоти згоряння по маршруту № 524 | C19: 37.95 | D19: 9064 | E19: 10.54
A23: Начальник управління Закарпатського ЛВУМГ | D23: Лукіта В.Ф. | F23: 01.03.17р.
A24: Підрозділу підприємства, якому підпорядкована лабораторія | D24: прізвище | E24: підпис | F24: дата
A25: Хімік ВХАЛ Закарпатського ЛВУМГ ЛВУМГ | D25: Завадяк О.В. | F25: 01.03.17р.
A26: Лабораторія, де здійснювалось вимірювання газу | D26: прізвище | E26: підпис | F26: дата
A27: Начальник метрологічної служби | D27: Водянчук М.В. | F27: 01.03.17р.
A28: Підрозділу, відповідального за облік газу за маршрутом | D28: прізвище | E28: підпис | F28: дата

Sheet variablesList (hidden)
A1: 3 | B1: x:\gaysin | C1: 10, 11, 24, 25, 127, 128, 132, 180, 207, 215 | D1: x:\
B2: x:\Illinci
B3: x:\Talne
